bitfinex-derivatives/quotes_BTCF0:USTF0_20240910
["timestamp","ask_amount","ask_price","bid_price","bid_amount"]
[1726010871641,0.086587,57742.0,57741.0,0.15517907]
[1726010872538,0.086587,57742.0,57741.0,0.06859107]
[1726010873432,0.086587,57742.0,57741.0,0.086589]
[1726010873740,0.005,57745.0,57744.0,0.086584]
[1726010873936,0.001,57745.0,57744.0,0.286584]
[1726010874136,0.001,57745.0,57744.0,0.37232284]
[1726010874331,0.086577,57750.0,57748.0,0.086578]
[1726010874732,0.086577,57750.0,57749.0,0.086577]
[1726010875528,0.087577,57750.0,57749.0,0.086577]
[1726010876339,0.001,57750.0,57749.0,0.086577]
[1726010876543,0.002,57750.0,57749.0,0.15521317]
[1726010876844,0.002,57750.0,57749.0,0.086577]
[1726010877139,0.002,57750.0,57747.0,0.08573884]
[1726010877343,0.002,57750.0,57749.0,0.086577]
[1726010877642,0.002,57750.0,57749.0,0.286577]
[1726010878340,0.086571,57754.0,57753.0,0.086571]
[1726010878731,0.086565,57757.0,57756.0,0.086565]
[1726010879045,0.086565,57757.0,57756.0,0.1552255]
[1726010880334,0.088565,57757.0,57756.0,0.086565]
[1726010881139,0.088565,57757.0,57756.0,0.15523769]
[1726010881347,0.002,57757.0,57756.0,0.15523769]
[1726010882047,0.012,57757.0,57756.0,0.15523769]
[1726010882940,0.098565,57757.0,57756.0,0.15523769]
[1726010883141,0.098565,57757.0,57756.0,0.086565]
[1726010883644,0.086566,57756.0,57755.0,0.05150459]
[1726010883840,0.086568,57755.0,57754.0,0.05150459]
[1726010884041,0.086568,57755.0,57753.0,0.13807459]
[1726010884744,0.012,57757.0,57753.0,0.05150459]
[1726010884745,0.086569,57754.0,57753.0,0.05150459]
[1726010884933,0.086571,57753.0,57752.0,0.086571]
[1726010885140,0.086571,57753.0,57752.0,0.13809127]
[1726010886344,0.286571,57753.0,57752.0,0.05152027]
[1726010886539,0.286571,57753.0,57748.0,0.13809827]
[1726010886540,0.2,57753.0,57748.0,0.13809827]
[1726010886844,0.2,57753.0,57748.0,0.086578]
[1726010887045,0.2,57753.0,57749.0,0.086577]
[1726010887244,0.086576,57750.0,57749.0,0.086577]
[1726010890048,0.089576,57750.0,57749.0,0.086577]
[1726010890252,0.089576,57750.0,57748.0,0.05152027]
[1726010890253,0.086577,57749.0,57748.0,0.05152027]
[1726010890453,0.08658,57747.0,57746.0,0.05152027]
[1726010891552,0.004,57750.0,57745.0,0.131683]
[1726010891553,0.086581,57746.0,57745.0,0.131683]
[1726010892849,0.087581,57746.0,57745.0,0.131683]
[1726010894657,0.088581,57746.0,57745.0,0.131683]
[1726010896354,0.088581,57746.0,57745.0,0.21742184]
[1726010897355,0.088581,57746.0,57745.0,0.32194657]
[1726010897757,0.088581,57746.0,57745.0,0.23536357]
[1726010901849,0.088581,57746.0,57745.0,0.32194657]
[1726010903253,0.088581,57746.0,57745.0,0.23620773]
[1726010905547,0.088581,57746.0,57745.0,0.32221494]
[1726010906654,0.088581,57746.0,57745.0,0.131683]
[1726010908557,0.088581,57746.0,57745.0,0.0451]
[1726010909852,0.088581,57746.0,57745.0,0.131683]
[1726010912254,0.088581,57746.0,57745.0,0.21769021]
[1726010913052,0.088581,57746.0,57745.0,0.32223358]
[1726010913265,0.088581,57746.0,57745.0,0.23622637]
[1726010914359,0.088581,57746.0,57745.0,0.33871953]
[1726010915049,0.088581,57746.0,57745.0,0.23622637]
[1726010916066,0.088581,57746.0,57745.0,0.36078001]
[1726010917163,0.088581,57746.0,57745.0,0.3395395]
[1726010917564,0.088581,57746.0,57745.0,0.23622637]
[1726010923665,0.002,57746.0,57745.0,0.23622637]
[1726010925255,0.088581,57746.0,57745.0,0.23622637]
[1726010926867,0.122,57746.0,57743.0,0.08610207]
[1726010927057,0.122,57746.0,57741.0,0.08610207]
[1726010927058,0.086587,57742.0,57741.0,0.08610207]
[1726010927264,0.08659,57740.0,57739.0,0.08610207]
[1726010927469,0.086592,57739.0,57738.0,0.08610207]
[1726010927770,0.086592,57739.0,57737.0,0.37]
[1726010927771,0.086593,57738.0,57737.0,0.45702207]
[1726010928069,0.086593,57738.0,57737.0,0.56096901]
[1726010928656,0.086593,57738.0,57737.0,0.47491648]
[1726010929167,0.087593,57738.0,57737.0,0.47491648]
[1726010929368,0.087593,57738.0,57737.0,0.56151148]
[1726010930264,0.087593,57738.0,57737.0,0.56251148]
[1726010930473,0.088593,57738.0,57737.0,0.56251148]
[1726010931559,0.002,57738.0,57737.0,0.68251148]
[1726010931762,0.002,57738.0,57737.0,0.78582461]
[1726010932463,0.002,57738.0,57737.0,0.68228437]
[1726010932866,0.002,57738.0,57737.0,0.78556044]
[1726010934965,0.002,57738.0,57737.0,0.68228437]
[1726010936358,0.002,57738.0,57737.0,0.78556044]
[1726010936763,0.002,57738.0,57737.0,0.68228437]
[1726010938175,0.002,57738.0,57737.0,0.577595]
[1726010938372,0.002,57738.0,57737.0,0.68249049]
[1726010941668,0.088593,57738.0,57737.0,0.68249049]
[1726010941875,0.088593,57738.0,57737.0,0.59589549]
[1726010942070,0.088593,57738.0,57737.0,0.68201739]
[1726010942965,0.088593,57738.0,57737.0,0.76861239]
[1726010943366,0.0465,57745.0,57737.0,0.59589549]
[1726010943566,0.086583,57745.0,57742.0,0.20609549]
[1726010943775,0.086583,57745.0,57744.0,0.08609549]
[1726010943975,0.086583,57745.0,57744.0,0.19085758]
[1726010944873,0.086583,57745.0,57744.0,0.27744158]
[1726010945074,0.087583,57745.0,57744.0,0.27744158]
[1726010945765,0.087583,57745.0,57744.0,0.19085758]
[1726010946169,0.088583,57745.0,57744.0,0.19085758]
[1726010946376,0.10802819,57745.0,57744.0,0.19083336]
[1726010946684,0.10702819,57745.0,57744.0,0.19083336]
[1726010946876,0.10902819,57745.0,57744.0,0.19083336]
[1726010948080,0.10902819,57745.0,57744.0,0.10473787]
[1726010948477,0.10802819,57745.0,57744.0,0.10473787]
[1726010948677,0.10902819,57745.0,57744.0,0.10473787]
[1726010949364,0.10702819,57745.0,57744.0,0.10473787]
[1726010949568,0.10902819,57745.0,57744.0,0.19083527]
[1726010950181,0.10702819,57745.0,57744.0,0.19083527]
[1726010950381,0.11002819,57745.0,57744.0,0.10473787]
[1726010950572,0.11002819,57745.0,57744.0,0.19084191]
[1726010950772,0.11002819,57745.0,57744.0,0.10473787]
[1726010950972,0.11002819,57745.0,57744.0,0.19084196]
[1726010951178,0.11002819,57745.0,57744.0,0.19097717]
[1726010951382,0.11002819,57745.0,57744.0,0.08610409]
[1726010951684,0.11002819,57745.0,57744.0,0.1549906]
[1726010951982,0.11002819,57745.0,57743.0,0.086585]
[1726010951983,0.086584,57744.0,57743.0,0.086585]
[1726010953073,0.088584,57744.0,57743.0,0.086585]
[1726010953269,0.089584,57744.0,57743.0,0.086585]
[1726010953771,0.003,57744.0,57743.0,0.086585]
[1726010953971,0.003,57744.0,57743.0,0.24014168]
[1726010956272,0.003,57744.0,57743.0,0.135285]
[1726010956476,0.003,57744.0,57743.0,0.24010394]
[1726010959391,0.003,57744.0,57743.0,0.36501062]
[1726010961392,0.003,57744.0,57743.0,0.26040852]
[1726010961585,0.003,57744.0,57743.0,0.36538129]
[1726010961994,0.01932589,57751.0,57750.0,0.086575]
[1726010962190,0.004,57753.0,57750.0,0.086575]
[1726010962191,0.086572,57753.0,57750.0,0.39759014]
[1726010962492,0.086572,57752.0,57750.0,0.29266634]
[1726010963390,0.01,57751.0,57750.0,0.29266634]
[1726010963584,0.01,57751.0,57750.0,0.31150799]
[1726010964095,0.096574,57751.0,57750.0,0.10493299]
[1726010964284,0.086576,57750.0,57749.0,0.08607576]
[1726010964484,0.01,57751.0,57749.0,0.1910252]
[1726010964694,0.01,57751.0,57749.0,0.08607576]
[1726010964989,0.096574,57751.0,57749.0,0.08607576]
[1726010965180,0.086575,57750.0,57749.0,0.08607576]
[1726010965389,0.086575,57750.0,57749.0,0.19102547]
[1726010966097,0.086575,57750.0,57749.0,0.19202547]
[1726010966793,0.086575,57750.0,57749.0,0.08707576]
[1726010967786,0.086575,57750.0,57749.0,0.08607576]
[1726010968100,0.094575,57750.0,57749.0,0.08607576]
[1726010968687,0.094575,57750.0,57749.0,0.19102212]
[1726010969793,0.094575,57750.0,57749.0,0.1910346]
[1726010969991,0.094575,57750.0,57749.0,0.08608824]
[1726010970190,0.094575,57750.0,57749.0,0.1912316]
[1726010970695,0.094575,57750.0,57749.0,0.19126838]
[1726010971488,0.094575,57750.0,57749.0,0.10515315]
[1726010972096,0.094575,57750.0,57749.0,0.19124411]
[1726010972302,0.094575,57750.0,57749.0,0.1912601]
[1726010972789,0.094575,57750.0,57749.0,0.10515315]
[1726010973795,0.094575,57750.0,57748.0,0.29269593]
[1726010974802,0.086577,57749.0,57748.0,0.29269593]
[1726010974998,0.086577,57749.0,57748.0,0.31189638]
[1726010975500,0.086577,57749.0,57748.0,0.39801765]
[1726010975896,0.086577,57749.0,57748.0,0.31189638]
[1726010976101,0.093577,57749.0,57748.0,0.31189638]
[1726010976499,0.093577,57749.0,57748.0,0.31187688]
[1726010976697,0.093577,57749.0,57748.0,0.39799903]
[1726010977205,0.093577,57749.0,57748.0,0.31187688]
[1726010977507,0.007,57749.0,57748.0,0.31187688]
[1726010977708,0.086563,57758.0,57756.0,0.086566]
[1726010977894,0.00184,57765.0,57759.0,0.086561]
[1726010978210,0.135847,57769.0,57764.0,0.17161358]
[1726010978512,0.086553,57765.0,57764.0,0.12]
[1726010979211,0.098553,57765.0,57764.0,0.12]
[1726010980609,0.100553,57765.0,57764.0,0.12]
[1726010981198,0.111553,57765.0,57764.0,0.121]
[1726010982309,0.111553,57765.0,57764.0,0.001]
[1726010982608,0.111553,57765.0,57764.0,0.17261696]
[1726010982914,0.025,57765.0,57764.0,0.121]
[1726010983098,0.025,57765.0,57764.0,0.31307679]
[1726010983300,0.025,57765.0,57764.0,0.19307679]
[1726010983500,0.025,57765.0,57764.0,0.087554]
[1726010983809,0.111553,57765.0,57764.0,0.001]
[1726010984111,0.111553,57765.0,57764.0,0.121]
[1726010984620,0.100553,57765.0,57764.0,0.12]
[1726010984915,0.114553,57765.0,57764.0,0.121]
[1726010985212,0.114553,57765.0,57764.0,0.18966503]
[1726010986104,0.028,57765.0,57764.0,0.27621903]
[1726010986998,0.028,57765.0,57764.0,0.207554]
[1726010988204,0.028,57765.0,57764.0,0.27617522]
[1726010988406,0.028,57765.0,57764.0,0.79553522]
[1726010988613,0.086539,57774.0,57764.0,0.64036]
[1726010988804,0.0454,57778.0,57773.0,0.12]
[1726010988805,0.0200145,57775.0,57773.0,0.12]
[1726010989110,0.0454,57778.0,57773.0,0.12]
[1726010989111,0.086537,57776.0,57773.0,0.12]
[1726010989417,0.086537,57776.0,57773.0,0.2157]
[1726010989713,0.014,57774.0,57773.0,0.2157]
[1726010990308,0.086538,57775.0,57773.0,0.2157]
[1726010990818,0.086538,57775.0,57773.0,0.2167]
[1726010991112,0.090538,57775.0,57773.0,0.2167]
[1726010991313,0.086539,57774.0,57773.0,0.2167]
[1726010991615,0.086539,57774.0,57773.0,0.26809143]
[1726010991818,0.086539,57774.0,57773.0,0.2167]
[1726010992004,0.093539,57774.0,57773.0,0.2177]
[1726010992311,0.093539,57774.0,57773.0,0.2167]
[1726010992511,0.093539,57774.0,57773.0,0.2177]
[1726010995605,0.007,57774.0,57773.0,0.2177]
[1726010995816,0.007,57774.0,57773.0,0.304241]
[1726010996120,0.007,57774.0,57773.0,0.37284948]
[1726010996319,0.007,57774.0,57773.0,0.304241]
[1726010997506,0.011,57774.0,57773.0,0.304241]
[1726010998715,0.018,57774.0,57773.0,0.304241]
[1726010999221,0.018,57774.0,57773.0,0.32411952]
[1726011001017,0.014,57774.0,57773.0,0.32311952]
[1726011001212,0.104539,57774.0,57773.0,0.002]
[1726011001416,0.08655,57767.0,57761.0,0.0494]
[1726011001617,0.08655,57767.0,57762.0,0.12]
[1726011002125,0.12,57772.0,57765.0,0.12]
[1726011002322,0.12,57772.0,57761.0,0.0494]
[1726011002323,0.03746566,57774.0,57771.0,0.12]
[1726011002518,0.018,57774.0,57773.0,0.086541]
[1726011002710,0.014,57774.0,57773.0,0.086541]
[1726011003023,0.086538,57776.0,57771.0,0.12]
[1726011003226,0.086538,57775.0,57771.0,0.206544]
[1726011003619,0.086538,57775.0,57774.0,0.12]
[1726011004420,0.086541,57773.0,57771.0,0.121]
[1726011005119,0.086541,57773.0,57772.0,0.086542]
[1726011005318,0.006,57774.0,57773.0,0.086541]
[1726011005631,0.06704199,57780.0,57777.0,0.086535]
[1726011005822,0.06704199,57780.0,57779.0,0.12]
[1726011006016,0.15357199,57780.0,57779.0,0.12]
[1726011006219,0.086533,57779.0,57777.0,0.086535]
[1726011006626,0.086533,57778.0,57777.0,0.086535]
[1726011008219,0.091533,57778.0,57777.0,0.087535]
[1726011008420,0.091533,57778.0,57777.0,0.088535]
[1726011008421,0.105533,57778.0,57777.0,0.088535]
[1726011010525,0.019,57778.0,57777.0,0.088535]
[1726011011327,0.019,57778.0,57777.0,0.458535]
[1726011011530,0.005,57778.0,57777.0,0.457535]
[1726011011833,0.005,57778.0,57777.0,0.371]
[1726011013435,0.005,57778.0,57777.0,0.43966569]
[1726011014337,0.005,57778.0,57777.0,0.371]
[1726011014937,0.005,57778.0,57777.0,0.457535]
[1726011015645,0.005,57778.0,57777.0,0.976775]
[1726011015828,0.004,57788.0,57787.0,0.08652]
[1726011016029,0.086513,57792.0,57789.0,0.086516]
[1726011016234,0.086513,57792.0,57791.0,0.2]
[1726011017535,0.086513,57792.0,57789.0,0.001]
[1726011017536,0.086516,57790.0,57789.0,0.001]
[1726011017938,0.086516,57790.0,57787.0,0.2]
[1726011018522,0.086516,57790.0,57788.0,0.05143838]
[1726011018723,0.100516,57790.0,57789.0,0.001]
[1726011019335,0.100516,57790.0,57789.0,0.087517]
[1726011019532,0.100516,57790.0,57789.0,0.13895538]
[1726011020128,0.086516,57790.0,57789.0,0.13895538]
[1726011020341,0.098516,57790.0,57789.0,0.13895538]
[1726011020742,0.086516,57790.0,57789.0,0.13895538]
[1726011020943,0.100516,57790.0,57789.0,0.13995538]
[1726011023944,0.100516,57790.0,57789.0,0.088517]
[1726011025342,0.100516,57790.0,57789.0,0.15710151]
[1726011025548,0.014,57790.0,57789.0,0.15710151]
[1726011025745,0.014,57790.0,57789.0,0.088517]
[1726011031251,0.014,57790.0,57789.0,0.15715357]
[1726011032342,0.014,57790.0,57789.0,0.27715357]
[1726011034548,0.014,57790.0,57789.0,0.29424764]
[1726011036538,0.100515,57790.0,57789.0,0.20773064]
[1726011036746,0.100515,57790.0,57789.0,0.208517]
[1726011038656,1.512665,57790.0,57788.0,0.068671]
[1726011038856,1.512665,57790.0,57779.0,0.08573064]
[1726011038857,0.80981123,57789.0,57779.0,0.08573064]
[1726011039156,0.086535,57777.0,57774.0,0.004]
[1726011039349,0.12,57775.0,57768.0,0.05155601]
[1726011039554,0.0465,57776.0,57767.0,0.05155601]
[1726011039555,0.086548,57768.0,57767.0,0.05155601]
[1726011039745,0.0475,57774.0,57766.0,0.17155601]
[1726011039746,0.08655,57767.0,57766.0,0.17155601]
[1726011040050,0.08655,57767.0,57762.0,0.15526264]
[1726011040247,0.08655,57767.0,57766.0,0.05147914]
[1726011040449,0.08655,57767.0,57764.0,0.06870564]
[1726011040652,0.0515,57774.0,57768.0,0.086548]
[1726011040653,0.086544,57772.0,57768.0,0.086548]
[1726011040850,0.086537,57776.0,57771.0,0.2]
[1726011041047,0.086537,57776.0,57775.0,0.2]
[1726011041252,0.086533,57779.0,57775.0,0.2]
[1726011042254,0.0465,57783.0,57775.0,0.2]
[1726011042462,0.0465,57783.0,57773.0,0.0476]
[1726011043455,0.086535,57778.0,57773.0,0.0476]
[1726011044356,0.086536,57776.0,57773.0,0.0476]
[1726011045960,0.087536,57776.0,57773.0,0.0476]
[1726011046350,0.087536,57776.0,57771.0,0.2]
[1726011046351,0.086542,57772.0,57771.0,0.05147046]
[1726011046553,0.086544,57771.0,57767.0,0.25147046]
[1726011046745,0.086551,57766.0,57765.0,0.05147046]
[1726011046947,0.086554,57764.0,57763.0,0.05147046]
[1726011047157,0.086556,57763.0,57760.0,0.05147046]
[1726011047463,0.086558,57762.0,57760.0,0.05147046]
[1726011048163,0.086558,57762.0,57759.0,0.33803246]
[1726011048552,0.086558,57762.0,57760.0,0.086559]
[1726011048953,0.087558,57762.0,57760.0,0.086559]
[1726011049650,0.087558,57762.0,57760.0,0.13802946]
[1726011050359,0.087558,57762.0,57760.0,0.086559]
[1726011051157,0.086558,57762.0,57760.0,0.086559]
[1726011051355,0.087558,57762.0,57760.0,0.086559]
[1726011052460,0.086559,57761.0,57760.0,0.05147046]
[1726011052765,0.086559,57761.0,57759.0,0.25147046]
[1726011053461,0.08656,57760.0,57759.0,0.2]
[1726011053651,0.08656,57760.0,57759.0,0.33803246]
[1726011054257,0.001,57762.0,57759.0,0.25147046]
[1726011054457,0.086555,57764.0,57760.0,0.05147046]
[1726011054665,0.086555,57764.0,57763.0,0.2]
[1726011055659,0.087555,57764.0,57763.0,0.2]
[1726011056658,0.087555,57764.0,57763.0,0.201]
[1726011057562,0.001,57764.0,57763.0,0.287556]
[1726011057967,0.001,57764.0,57763.0,0.286556]
[1726011058551,0.01973186,57770.0,57763.0,0.286556]
[1726011058865,0.001,57764.0,57763.0,0.286556]
[1726011059467,0.086556,57763.0,57762.0,0.05147046]
[1726011059664,0.086556,57763.0,57758.0,0.286562]
[1726011059665,0.086556,57763.0,57758.0,0.05147046]
[1726011059868,0.086563,57758.0,57757.0,0.0962]
[1726011060354,0.086568,57755.0,57754.0,0.05147046]
[1726011060666,0.086572,57753.0,57751.0,0.09707046]
[1726011060853,0.086566,57757.0,57751.0,0.0456]
[1726011061058,0.01987188,57763.0,57754.0,0.2]
[1726011061360,0.086554,57764.0,57763.0,0.001]
[1726011061958,0.086559,57761.0,57760.0,0.2]
[1726011062559,0.01949647,57764.0,57758.0,0.086563]
[1726011062757,0.182551,57767.0,57758.0,0.086563]
[1726011062963,0.003,57764.0,57758.0,0.086563]
[1726011063157,0.003,57764.0,57756.0,0.2]
[1726011063470,0.003,57764.0,57759.0,0.086562]
[1726011064169,0.001,57761.0,57759.0,0.086562]
[1726011064666,0.086561,57760.0,57759.0,0.086562]
[1726011065268,0.11542731,57767.0,57759.0,0.001]
[1726011065568,0.37312,57760.0,57759.0,0.001]
[1726011066275,0.45968,57760.0,57759.0,0.001]
[1726011066870,0.37312,57760.0,57759.0,0.001]
[1726011067168,0.17412,57760.0,57759.0,0.001]
[1726011067676,0.086571,57753.0,57752.0,0.0932]
[1726011068963,0.087571,57753.0,57752.0,0.1022]
[1726011070467,0.001,57753.0,57752.0,0.24024246]
[1726011070666,0.001,57753.0,57752.0,0.188772]
[1726011070866,0.001,57753.0,57752.0,0.25747764]
[1726011071072,0.001,57753.0,57752.0,0.188772]
[1726011071272,0.002,57753.0,57752.0,0.558772]
[1726011071875,0.004,57762.0,57760.0,0.086559]
[1726011072180,0.086556,57763.0,57761.0,0.0465]
[1726011072475,0.086556,57763.0,57762.0,0.0514578]
[1726011073074,0.086556,57763.0,57761.0,0.0979578]
[1726011073270,0.086556,57763.0,57762.0,0.0514578]
[1726011073475,0.087556,57763.0,57762.0,0.0514578]
[1726011073871,0.086556,57763.0,57762.0,0.0514578]
[1726011074178,0.087556,57763.0,57762.0,0.0514578]
[1726011075169,0.087556,57763.0,57761.0,0.0465]
[1726011075476,0.089556,57763.0,57761.0,0.0465]
[1726011075677,0.089556,57763.0,57762.0,0.05149512]
[1726011075870,0.089556,57763.0,57761.0,0.0465]
[1726011075871,0.086557,57762.0,57761.0,0.09799512]
[1726011076268,0.086557,57762.0,57761.0,0.0465]
[1726011077379,0.087557,57762.0,57761.0,0.0465]
[1726011077575,0.086559,57761.0,57760.0,0.086559]
[1726011078277,0.086559,57761.0,57760.0,0.1551669]
[1726011079480,0.087559,57761.0,57760.0,0.086559]
[1726011079874,0.087559,57761.0,57760.0,0.13806585]
[1726011080078,0.087559,57761.0,57760.0,0.086559]
[1726011080273,0.087559,57761.0,57760.0,0.13806585]
[1726011080583,0.087559,57761.0,57760.0,0.13906585]
[1726011081176,0.087559,57761.0,57760.0,0.05350685]
[1726011081383,0.174118,57761.0,57760.0,0.002]
[1726011081774,1.293518,57761.0,57760.0,0.002]
[1726011081968,1.384818,57761.0,57760.0,0.002]
[1726011082181,1.431118,57761.0,57760.0,0.002]
[1726011082687,1.45818369,57761.0,57760.0,0.002]
[1726011082979,1.45918369,57761.0,57760.0,0.002]
[1726011083182,1.45918369,57761.0,57752.0,0.004]
[1726011083183,0.086571,57753.0,57752.0,0.004]
[1726011083387,0.086574,57751.0,57749.0,0.13808185]
[1726011083575,0.086574,57751.0,57750.0,0.05150685]
[1726011083883,0.086574,57751.0,57750.0,0.086575]
[1726011084187,0.086574,57751.0,57750.0,0.1551829]
[1726011085375,0.086574,57751.0,57750.0,0.086575]
[1726011085578,0.088574,57751.0,57750.0,0.097575]
[1726011085885,0.088574,57751.0,57750.0,0.1661829]
[1726011086389,0.002,57751.0,57750.0,0.1661829]
[1726011087085,0.002,57751.0,57750.0,0.18333488]
[1726011087275,0.002,57751.0,57750.0,0.28762661]
[1726011087675,0.002,57751.0,57750.0,0.18333488]
[1726011088079,0.002,57751.0,57750.0,0.28763545]
[1726011089191,0.002,57751.0,57750.0,0.20187557]
[1726011089689,0.088574,57751.0,57750.0,0.20187557]
[1726011094398,0.088574,57751.0,57750.0,0.28778748]
[1726011094696,0.088574,57751.0,57750.0,0.2878729]
[1726011094891,0.088574,57751.0,57750.0,0.097575]
[1726011096192,0.088574,57751.0,57750.0,0.011]
[1726011100981,0.088574,57751.0,57750.0,0.097575]
[1726011102482,0.088574,57751.0,57750.0,0.18348691]
[1726011102688,0.088574,57751.0,57750.0,0.09691191]
[1726011103216,0.002,57751.0,57750.0,0.40201832]
[1726011103387,0.090558,57762.0,57750.0,0.40201832]
[1726011103388,0.004,57762.0,57761.0,0.086559]
[1726011103585,0.004,57771.0,57761.0,0.30444332]
[1726011103784,0.01953928,57773.0,57768.0,0.2]
[1726011103985,0.086539,57775.0,57772.0,0.06869045]
[1726011104185,0.086539,57775.0,57773.0,0.06869045]
[1726011104385,0.086539,57775.0,57769.0,0.17698446]
[1726011104386,0.086539,57775.0,57774.0,0.05148654]
[1726011105098,0.10599215,57775.0,57774.0,0.05148654]
[1726011105401,0.086539,57774.0,57773.0,0.05148654]
[1726011106387,0.02745315,57775.0,57772.0,0.05148654]
[1726011106388,0.086541,57773.0,57772.0,0.05148654]
[1726011107805,0.086542,57772.0,57771.0,0.05148654]
[1726011109388,0.087542,57772.0,57770.0,0.05148654]
[1726011110000,0.087542,57772.0,57769.0,0.177647]
[1726011110297,0.086544,57771.0,57770.0,0.086545]
[1726011112186,0.001,57772.0,57771.0,0.086544]
[1726011112485,0.004,57781.0,57771.0,0.086544]
[1726011112486,0.004,57781.0,57780.0,0.08653]
[1726011112685,0.086526,57783.0,57781.0,0.086529]
[1726011114090,0.091526,57783.0,57781.0,0.086529]
[1726011114292,0.091526,57783.0,57782.0,0.086527]
[1726011115292,0.103526,57783.0,57782.0,0.086527]
[1726011116205,0.104526,57783.0,57782.0,0.087527]
[1726011116992,0.105526,57783.0,57782.0,0.087527]
[1726011124607,0.019,57783.0,57782.0,0.087527]
[1726011124805,0.019,57783.0,57782.0,0.174054]
[1726011125000,0.004,57792.0,57791.0,0.086514]
[1726011125196,0.086505,57797.0,57796.0,0.086505]
[1726011125906,0.01928278,57801.0,57792.0,0.1446]
[1726011126095,0.08651,57794.0,57792.0,0.231111]
[1726011126299,0.086511,57793.0,57792.0,0.231111]
[1726011129110,0.100511,57793.0,57792.0,0.232111]
[1726011129306,0.100511,57793.0,57792.0,0.233111]
[1726011130505,0.100511,57793.0,57792.0,0.183811]
[1726011131915,0.100511,57793.0,57792.0,0.0973]
[1726011132111,0.100511,57793.0,57792.0,0.002]
[1726011133119,0.187022,57793.0,57792.0,0.002]
[1726011133317,1.13308,57793.0,57777.0,0.05535086]
[1726011133522,1.13308,57793.0,57780.0,0.004]
[1726011133523,0.086529,57781.0,57780.0,0.004]
[1726011133727,0.2,57782.0,57775.0,0.086537]
[1726011134021,0.08653,57780.0,57772.0,0.179141]
[1726011134518,0.086538,57775.0,57772.0,0.179141]
[1726011135316,0.2,57778.0,57772.0,0.0926]
[1726011135515,0.086545,57770.0,57768.0,0.06846781]
[1726011135720,0.086545,57770.0,57767.0,0.06846781]
[1726011135917,0.086545,57770.0,57769.0,0.05137694]
[1726011136517,0.005,57778.0,57768.0,0.06846781]
[1726011136816,0.001,57778.0,57771.0,0.05137574]
[1726011137015,0.08653,57780.0,57771.0,0.05137574]
[1726011137222,0.086542,57772.0,57771.0,0.05137574]
[1726011139017,0.086542,57772.0,57770.0,0.286545]
[1726011139228,0.087542,57772.0,57770.0,0.286545]
[1726011140713,0.087542,57772.0,57770.0,0.37242946]
[1726011141120,0.087542,57772.0,57770.0,0.37342946]
[1726011141313,0.001,57772.0,57771.0,0.086544]
[1726011141511,0.001,57772.0,57771.0,0.27616014]
[1726011141824,0.001,57772.0,57771.0,0.19027568]
[1726011142929,0.086537,57776.0,57772.0,0.086541]
[1726011143123,0.086537,57776.0,57772.0,0.1722011]
[1726011143427,0.02393539,57781.0,57772.0,0.1722011]
[1726011143628,0.02393539,57781.0,57778.0,0.05139412]
[1726011143629,0.01993539,57781.0,57778.0,0.05139412]
[1726011143823,0.086527,57783.0,57778.0,0.05139412]
[1726011143824,0.086532,57779.0,57778.0,0.05139412]
[1726011145132,0.088532,57779.0,57778.0,0.05239412]
[1726011147022,0.088532,57779.0,57778.0,0.001]
[1726011152840,0.175064,57779.0,57778.0,0.001]
[1726011153337,0.175064,57779.0,57778.0,0.05239372]
[1726011154135,0.175064,57779.0,57778.0,0.001]
[1726011157844,0.261596,57779.0,57778.0,0.001]
[1726011158045,0.261596,57779.0,57770.0,0.004]
[1726011158046,0.173078,57774.0,57770.0,0.004]
[1726011158250,0.173078,57774.0,57763.0,0.1316601]
[1726011158251,0.086547,57769.0,57768.0,0.05139372]
[1726011158447,0.08655,57767.0,57762.0,0.05145265]
[1726011158646,0.086557,57762.0,57761.0,0.05145265]
[1726011158852,0.086559,57761.0,57760.0,0.05145265]
[1726011159151,0.286557,57762.0,57758.0,0.06852549]
[1726011159152,0.2,57762.0,57758.0,0.06852549]
[1726011159343,0.2,57762.0,57761.0,0.05147125]
[1726011159749,0.086557,57762.0,57761.0,0.05147125]
[1726011161851,0.087557,57762.0,57761.0,0.05147125]
[1726011162039,0.001,57762.0,57761.0,0.48915589]
[1726011162246,0.004,57771.0,57766.0,0.086551]
[1726011162442,0.086544,57772.0,57768.0,0.06862651]
[1726011162649,0.086544,57772.0,57771.0,0.05146755]
[1726011162650,0.105818,57772.0,57771.0,0.05146755]
[1726011162843,0.105818,57772.0,57770.0,0.086545]
[1726011163148,0.019274,57772.0,57770.0,0.086545]
[1726011163341,0.2,57777.0,57770.0,0.086545]
[1726011163542,0.086536,57776.0,57775.0,0.0514718]
[1726011164854,0.086536,57776.0,57775.0,0.0524718]
[1726011165353,0.089536,57776.0,57775.0,0.0524718]
[1726011166853,0.176072,57776.0,57775.0,0.001]
[1726011167154,0.176072,57776.0,57769.0,0.03247555]
[1726011167155,0.086539,57774.0,57769.0,0.03247555]
[1726011167454,0.086539,57774.0,57767.0,0.004]
[1726011167455,0.2,57770.0,57767.0,0.06864376]
[1726011167852,0.086547,57769.0,57768.0,0.06864376]
[1726011168049,0.086554,57764.0,57763.0,0.08578314]
[1726011168357,0.086547,57769.0,57763.0,0.19038854]
[1726011168555,0.086547,57769.0,57760.0,0.2961]
[1726011168556,0.086551,57767.0,57765.0,0.17233514]
[1726011169053,0.086551,57766.0,57765.0,0.086552]
[1726011171160,0.086551,57766.0,57765.0,0.093552]
[1726011171861,0.087551,57766.0,57765.0,0.093552]
[1726011172955,0.087551,57766.0,57765.0,0.007]